Cogmind - Beta 17 @@@ ROGUE MODE // 2026.07.24 @ 02:01:47 Player: Ry645 Result: Destroyed by D-53 Grenadier with Mini Grenade Launcher Performance ------------- Evolutions (0) 0 Regions Visited (4) 800 Robots Destroyed (17) 85 Value Destroyed (378) 378 Prototype IDs (29) 580 Alien Tech Used (0) 0 Bonus (300) 300 TOTAL SCORE: 2143 Bonus ------- Aligned with FarCom 300 Cogmind --------- Core Integrity 0/250 Matter 280/300 Energy 232/265 System Corruption 0% Temperature Cool (0) Movement Treading (320) Ox2 Location -9/Mines Parts ------- > --- POWER (1) -------- Reinforced Ion Engine > --- PROPULSION (2) --- Light Treads Light Treads > --- UTILITY (2) ------ Cooling System Huge Storage Unit > --- WEAPON (2) ------- Light Cannon Light Cannon > --- INVENTORY (25) --- Light Nuclear Core Light Treads Flight Unit Flight Unit Flight Unit Flight Unit High-capacity Matter Pod (200) High-capacity Matter Pod (200) Transport Network Coupler ECM Suite Trap Reconfigurator Small Laser Assault Rifle Assault Rifle Peak State ------------ > --- POWER ------------ Reinforced Ion Engine > --- PROPULSION ------- Light Treads Light Treads > --- UTILITY ---------- Cooling System Huge Storage Unit > --- WEAPON ----------- Small Laser Assault Rifle > --- INVENTORY -------- Light Nuclear Core Light Treads Flight Unit Flight Unit Flight Unit Flight Unit Medium Matter Pod Medium Matter Pod Transport Network Coupler ECM Suite Trap Reconfigurator Assault Rifle Light Cannon Light Cannon [Rating: 11] Favorites ----------- Power Reinforced Ion Engine Engine Reinforced Ion Engine Propulsion Light Treads Treads Light Treads Utility Huge Storage Unit Device Cooling System Storage Huge Storage Unit Weapon Assault Rifle Energy Gun Small Laser Ballistic Gun Assault Rifle Ballistic Cannon Light Cannon Build | -11 -10 -10 -10 -9 ------- Run | Yrd Mat Min Exi Min Slots Evolved . | . . . . . Power . | . . . . . Propulsion . | . . . . . Utility . | . . . . . Weapon . | . . . . . Parts Attached 17 | 7 9 . . 1 Power 4 | 1 3 . . . Engine 4 | 1 3 . . . Core . | . . . . . Reactor . | . . . . . Propulsion 3 | 2 1 . . . Treads 3 | 2 1 . . . Leg . | . . . . . Wheel . | . . . . . Hover . | . . . . . Flight . | . . . . . Utility 4 | 2 2 . . . Device 1 | . 1 . . . Storage 3 | 2 1 . . . Processor . | . . . . . Hackware . | . . . . . Protection . | . . . . . Artifact . | . . . . . Weapon 6 | 2 3 . . 1 Energy Gun 1 | . 1 . . . Energy Cannon . | . . . . . Ballistic Gun 3 | 2 1 . . . Ballistic Cannon 2 | . 1 . . 1 Launcher . | . . . . . Special Weapon . | . . . . . Impact Weapon . | . . . . . Slashing Weapon . | . . . . . Piercing Weapon . | . . . . . Special Melee Weapon . | . . . . . Unidentified Prototypes . | . . . . . Parts Lost 5 | . 5 . . . Power 2 | . 2 . . . Propulsion 1 | . 1 . . . Utility . | . . . . . Weapon 2 | . 2 . . . Highest Loss Streak 2 | . 2 . . . To Critical Strikes . | . . . . . Average Backups 10 | 1 7 13 13 14 Power 1 | . 2 1 1 1 Propulsion 2 | . 1 5 5 5 Utility 3 | . 2 4 4 5 Weapon 2 | 1 1 3 3 3 Tool/Special . | . . . . . Unused Backups 19 | . 5 . 2 12 Power 4 | . 3 . . 1 Propulsion 5 | . . . . 5 Utility 8 | . 1 . 2 5 Weapon 2 | . 1 . . 1 Tool/Special . | . . . . . Average Slot Usage (%) 98 | . 97 100 100 100 Engine 13 | . 13 14 14 14 Treads 26 | . 26 28 28 28 Device 11 | . 10 14 14 14 Storage 16 | . 17 14 14 14 Energy Gun 10 | . 7 14 14 14 Ballistic Gun 12 | . 11 14 14 14 Ballistic Cannon 4 | . 8 . . . Peak Build Rating 11 | 7 10 10 11 11 Average Rating 9 | 4 8 10 10 11 On Entrance 7 | . 7 10 10 11 Avg Prop Armor Cover (%) . | . . . . . Naked Turns . | . . . . . Heaviest Build 97 | 19 97 95 95 95 Greatest Support 40 | 40 40 40 40 40 Greatest Overweight (x) 4 | . 4 2 2 2 Average Overweight (x) 1 | . 1 2 2 2 Largest Inventory Capacity 25 | 8 25 25 25 25 Average Capacity 23 | 7 23 25 25 25 Most Carried 14 | 4 14 13 14 14 Average Carried 10 | 1 7 13 13 14 Final Capacity 25 | 8 25 25 25 25 Final Carried 14 | 2 13 13 14 14 Class Distribution -------------------- 100% | Mutant Dominant Class ---------------- Mutant | -10/Materials Mutant | -10/Mines Mutant | -10/Exiles Mutant | -9/Mines Resources | -11 -10 -10 -10 -9 ----------- Run | Yrd Mat Min Exi Min Matter Collected 929 | 224 675 . 30 . Remotely . | . . . . . Salvage Created 614 | 69 545 . . . Parts 34 | 2 32 . . . Haulers Intercepted 1 | . 1 . . . Recyclers Shooed 1 | . 1 . . . Parts Field Recycled . | . . . . . Retrieved Matter . | . . . . . Parts Self-Destructed . | . . . . . Prevented . | . . . . . Parts Restored . | . . . . . Kills | -11 -10 -10 -10 -9 ------- Run | Yrd Mat Min Exi Min Combat Hostiles Destroyed 11 | . 11 . . . Guns 4 | . 4 . . . Cannons 7 | . 7 . . . Classes Destroyed 7 | 1 6 . . . Builder 1 | . 1 . . . Hauler 1 | . 1 . . . Recycler 3 | 1 2 . . . Watcher 1 | . 1 . . . Swarmer 3 | . 3 . . . Grunt 6 | . 6 . . . Subdweller 2 | . 2 . . . Best Kill Streak 3 | 1 3 . . . Combat Bots Only 3 | . 3 . . . Max Kills in Single Turn 1 | 1 1 . . . Gunslinging . | . . . . . Exploded . | . . . . . Melee . | . . . . . Uniques/NPCs Destroyed . | . . . . . Combat | -11 -10 -10 -10 -9 -------- Run | Yrd Mat Min Exi Min Hostile Shots Fired 91 | . 83 . . 8 Missed 23 | . 23 . . . Hits 68 | . 60 . . 8 Projectile 68 | . 60 . . 8 AOE 8 | . . . . 8 Critical Strikes 2 | . 2 . . . Damage Taken 1247 | . 941 . . 306 Core 251 | . 199 . . 52 Absorbed by Shields . | . . . . . Regen/Repaired (Parts) 347 | . 347 . . . Core Remaining (%) 100 | 100 . . . . Volleys Fired 47 | 3 44 . . . Largest 2 | 2 2 . . . Hottest 70 | 40 70 . . . Shots Fired 93 | 6 87 . . . Gun 56 | 6 50 . . . Cannon 37 | . 37 . . . Launcher . | . . . . . Special . | . . . . . Kinetic 83 | 6 77 . . . Thermal 10 | . 10 . . . Explosive . | . . . . . Electromagnetic . | . . . . . Robot Hit Streak 16 | 6 16 . . . Robot Miss Streak 3 | . 3 . . . Penetration Max . | . . . . . Secondary Targets . | . . . . . Shots Hit Robots 57 | 6 51 . . . Core Hits 24 | 2 22 . . . Critical Kills 1 | . 1 . . . Critical Parts Destroyed . | . . . . . Critical Strikes 2 | . 2 . . . Destroy 1 | . 1 . . . Blast 1 | . 1 . . . Melee Attacks . | . . . . . Impact . | . . . . . Slashing . | . . . . . Piercing . | . . . . . Sneak Attacks . | . . . . . Combat Hostiles . | . . . . . Follow-up Attacks . | . . . . . Damage Inflicted 853 | 75 778 . . . Guns 458 | 75 383 . . . Cannons 388 | . 388 . . . Explosions . | . . . . . Melee . | . . . . . Ramming 7 | . 7 . . . Kinetic 790 | 75 715 . . . Thermal 56 | . 56 . . . Explosive . | . . . . . Electromagnetic . | . . . . . Impact . | . . . . . Slashing . | . . . . . Piercing . | . . . . . Highest Corruption . | . . . . . Average Corruption . | . . . . . Corruption Purged . | . . . . . Corruption Blocked . | . . . . . Overload Shots . | . . . . . Overflow Damage . | . . . . . Projectiles . | . . . . . Explosions . | . . . . . Melee . | . . . . . Knockbacks 8 | . 8 . . . Impact . | . . . . . Kinetic 8 | . 8 . . . Secondary . | . . . . . Self-Inflicted Damage . | . . . . . Shots . | . . . . . Rammed 3 | . 3 . . . Targets Rammed 3 | . 3 . . . Kicked . | . . . . . Crushed . | . . . . . Highest Temperature 2 | . 2 . . . Average Temperature 2 | . 2 . . . Received Heat Transfer 216 | . 216 . . . Siege Activations . | . . . . . Martial Activations . | . . . . . Shielding Activations . | . . . . . Robots Disrupted . | . . . . . Combat Hostiles . | . . . . . Robots Corrupted . | . . . . . Combat Hostiles . | . . . . . Parts Fried . | . . . . . Impact Corruptions . | . . . . . Robots Melted . | . . . . . Combat Hostiles . | . . . . . Parts Melted 1 | . 1 . . . Heat Transferred 125 | . 125 . . . Parts Sabotaged . | . . . . . Parts Stolen . | . . . . . Parts Stripped . | . . . . . Power Chain Reactions . | . . . . . Alert | -11 -10 -10 -10 -9 ------- Run | Yrd Mat Min Exi Min Maximum Alert Level . | . . . . . Low Security (%) 100 | 100 100 100 . 100 Level 1 . | . . . . . Level 2 . | . . . . . Level 3 . | . . . . . Level 4 . | . . . . . Level 5 . | . . . . . High Security . | . . . . . Max Security . | . . . . . Peak Influence 89 | 5 89 5 . . Initial 5 | . . 5 . . Average 13 | . 16 . . . Influence Increases 298 | 5 293 . . . Destroy 0b10 Robot/C 180 | . 180 . . . Destroy 0b10 Robot/NC 30 | 5 25 . . . Destroy Leader 34 | . 34 . . . Successful Hack 37 | . 37 . . . Disable Machine 15 | . 15 . . . Destroy Structure 2 | . 2 . . . Influence Decreases 298 | 5 279 14 . . Entered New Map 9 | . . 9 . . Time Decay 249 | 5 239 5 . . Lost Part 40 | . 40 . . . Squads Dispatched 1 | . 1 . . . Investigation 1 | . 1 . . . Extermination . | . . . . . Reinforcement . | . . . . . Assault . | . . . . . Garrison . | . . . . . Intercept . | . . . . . Searches Triggered . | . . . . . Construction Impeded . | . . . . . Haulers Reinforced . | . . . . . Active Scanning Responses . | . . . . . Cargo Convoy Interrupts . | . . . . . Stealth | -11 -10 -10 -10 -9 --------- Run | Yrd Mat Min Exi Min Distress Signals 2 | . 2 . . . Communications Jammed . | . . . . . Distress Signals . | . . . . . Times Spotted 20 | . 17 . . 3 Peak Tracking Total 3 | . 3 . . 2 Tactical Retreats . | . . . . . Traps | -11 -10 -10 -10 -9 ------- Run | Yrd Mat Min Exi Min Traps Triggered 2 | . 2 . . . Indirectly . | . . . . . Trap Hack Attempts . | . . . . . Triggered . | . . . . . Disarmed . | . . . . . Reprogrammed . | . . . . . Reused . | . . . . . Traps Extracted . | . . . . . Installed . | . . . . . Triggered . | . . . . . Machines | -11 -10 -10 -10 -9 ---------- Run | Yrd Mat Min Exi Min Machines Disabled 1 | . 1 . . . Max in Single Turn 1 | . 1 . . . Machines Repaired . | . . . . . Machines Dismantled . | . . . . . Machines Sabotaged . | . . . . . Overloaded Fab Kills . | . . . . . Hacking | -11 -10 -10 -10 -9 --------- Run | Yrd Mat Min Exi Min Machines Accessed 12 | . 10 . 2 . Terminals 7 | . 7 . . . Fabricators . | . . . . . Repair Stations 1 | . 1 . . . Recycling Units 2 | . 2 . . . Scanalyzers . | . . . . . Garrison Access . | . . . . . Total Hacks 40 | . 38 . 2 . Successful 22 | . 20 . 2 . Failed 17 | . 17 . . . Catastrophic 4 | . 4 . . . Database Lockouts 1 | . 1 . . . Manual 7 | . 6 . 1 . Terminals 26 | . 26 . . . Fabricators . | . . . . . Repair Stations 7 | . 7 . . . Recycling Units 5 | . 5 . . . Scanalyzers . | . . . . . Garrison Access . | . . . . . Terminal Hacks 16 | . 14 . 2 . Record 1 | . . . 1 . Robot Analysis 1 | . 1 . . . Prototype ID Bank 5 | . 5 . . . Locate Traps 1 | . 1 . . . Dispatch Records 1 | . 1 . . . Patrol Status 1 | . 1 . . . Transport Status 1 | . 1 . . . Hauler Manifests 1 | . 1 . . . Registered Components 1 | . 1 . . . Zone Layout 2 | . 2 . . . Proto ID Catalog 1 | . . . 1 . Fabricator Hacks . | . . . . . Repair Station Hacks 6 | . 6 . . . Scan Component 3 | . 3 . . . Repair 3 | . 3 . . . Recycling Unit Hacks . | . . . . . Scanalyzer . | . . . . . Garrison Access Hacks . | . . . . . Unauthorized Hacks . | . . . . . Terminals . | . . . . . Fabricators . | . . . . . Repair Stations . | . . . . . Recycling Units . | . . . . . Scanalyzers . | . . . . . Garrison Access . | . . . . . Data Cores Recovered . | . . . . . Used . | . . . . . Hacking Detections 10 | . 10 . . . Full Trace Events . | . . . . . Feedback Events . | . . . . . Feedback Blocked . | . . . . . Robot Schematics Acquired . | . . . . . Robots Built . | . . . . . Authchips . | . . . . . Time . | . . . . . Total Robot Build Rating . | . . . . . Part Schematics Acquired . | . . . . . Parts Built . | . . . . . Authchips . | . . . . . Time . | . . . . . Total Part Build Rating . | . . . . . Part Studies Acquired . | . . . . . Parts Repaired 3 | . 3 . . . Time 78 | . 78 . . . Parts Recycled . | . . . . . Recycled Matter . | . . . . . Retrieved Matter . | . . . . . Retrieved Components . | . . . . . Parts Scanalyzed . | . . . . . Part Schematics Acquired . | . . . . . Parts Damaged . | . . . . . Bothacking | -11 -10 -10 -10 -9 ------------ Run | Yrd Mat Min Exi Min Used RIF Installer . | . . . . . Robots Hacked . | . . . . . Non-combat . | . . . . . Combat . | . . . . . Robot Hacks Applied . | . . . . . Relay Couplers Released . | . . . . . Fabnet Peak Effective % . | . . . . . Robots Rewired . | . . . . . Allies Hacked . | . . . . . Hacks Repelled . | . . . . . Allies | -11 -10 -10 -10 -9 -------- Run | Yrd Mat Min Exi Min Total Allies . | . . . . . Largest Group . | . . . . . Highest-Rated Group . | . . . . . Highest-Rated Ally . | . . . . . Total Orders . | . . . . . Ally Attacks . | . . . . . Total Damage . | . . . . . Kills . | . . . . . Allies Corrupted . | . . . . . Allies Melted . | . . . . . Intel | -11 -10 -10 -10 -9 ------- Run | Yrd Mat Min Exi Min Active Infowar (turns) . | . . . . . Robot Analysis Total 1 | . 1 . . . Derelict Logs Recovered . | . . . . . Drone Launches . | . . . . . Drone Recoveries . | . . . . . Exploration | -11 -10 -10 -10 -9 ------------- Run | Yrd Mat Min Exi Min Turns Passed 5157 | 123 2860 493 1646 35 Spaces Moved 1573 | 65 829 155 514 10 Core 2 | 2 . . . . Treads 1571 | 63 829 155 514 10 Legs . | . . . . . Wheels . | . . . . . Hover . | . . . . . Flight . | . . . . . Fastest Speed 50 | 50 160 320 320 320 Average Speed 308 | 156 310 320 320 320 Slowest Speed 480 | 160 480 320 320 320 Overloaded Moves . | . . . . . Propulsion Burnouts . | . . . . . Robots Hopped . | . . . . . Potential Cave-ins . | . . . . . Cave-ins Triggered . | . . . . . Exploration Rate (%) 46 | 5 97 43 79 9 Regions Visited 4 Branch Regions 3 Pre-discovered Areas 1 | . . . 1 . Known Exits Taken . | . . . . . Unknown Exits Taken 4 | 1 1 1 1 . Scrap Searched . | . . . . . Spaces Dug . | . . . . . Terrain Destroyed . | . . . . . Melee . | . . . . . Projectile . | . . . . . AOE . | . . . . . Terrain Rammed . | . . . . . Walls Destroyed . | . . . . . Machines Disabled . | . . . . . Actions | -11 -10 -10 -10 -9 --------- Run | Yrd Mat Min Exi Min Total 1787 | 78 1025 154 518 12 Wait 98 | . 98 . . . Move 1569 | 64 828 154 513 10 Hop . | . . . . . Pick Up 34 | 4 27 . 3 . Fast Attach 7 | 5 2 . . . Attach 12 | 2 10 . . . Detach . | . . . . . Swap 5 | . 3 . . 2 Drop 12 | . 10 . 2 . Fire 47 | 3 44 . . . Melee . | . . . . . Ram . | . . . . . Kick . | . . . . . Crush 3 | . 3 . . . Escape Stasis . | . . . . . Rewire . | . . . . . Trap . | . . . . . Miscellaneous . | . . . . . Route ------- -11/Scrapyard -10/Materials (discovered 5 exits: [*Mat x3] / [*Min] / [*Sub]) -10/Mines (discovered 2 exits: [*Mat] / *Exi) -10/Exiles (discovered 2 exits: [*Min x2]) -9/Mines History --------- Turn | Location | Event 42 | -11/Scrapyard | Discovered new exit (range 15) 124 | -11/Scrapyard | Entered Materials 208 | -10/Materials | Discovered new exit (range 12) 330 | -10/Materials | Build established: Mutant 756 | -10/Materials | Central database locked down 834 | -10/Materials | Discovered new exit (range 12) 1024 | -10/Materials | Derelicts attacked the area 1422 | -10/Materials | Discovered new exit (range 15) 1848 | -10/Materials | Discovered new exit (range 14) 1983 | -10/Materials | Discovered new exit (range 12) 2228 | -10/Materials | Core integrity fell below 50% 2837 | -10/Materials | Repaired Lgt. Cannon 2864 | -10/Materials | Repaired Lgt. Treads 2892 | -10/Materials | Repaired Lgt. Treads 2984 | -10/Materials | Entered Mines 3432 | -10/Mines | Discovered new exit (range 5) 3461 | -10/Mines | Deemed a non-threat by the Exiles lab entrance 3464 | -10/Mines | Discovered new exit (range 5) 3477 | -10/Mines | Entered Exiles 3519 | -10/Exiles | Discovered new exit (range 15) 3564 | -10/Exiles | Met 8R-AWN 3615 | -10/Exiles | Met EX-HEX 3701 | -10/Exiles | Met EX-BIN 3743 | -10/Exiles | Aligned with FarCom system 3746 | -10/Exiles | Given EX-Vault access code 3833 | -10/Exiles | Opened EX-Vault 3858 | -10/Exiles | Found Trap Reconfigurator 3920 | -10/Exiles | Warned to stay clear of 0b10 Research branches 4010 | -10/Exiles | Met EX-DEC 4032 | -10/Exiles | Learned location of Zion (-6) 4772 | -10/Exiles | Visited The Gauntlet 5088 | -10/Exiles | Discovered new exit (range 14) 5123 | -10/Exiles | Left Exiles lab with Trap Reconfigurator 5123 | -10/Exiles | Entered Mines 5124 | -9/Mines | Assembled infested the area 5153 | -9/Mines | Core integrity fell below 20% 5158 | -9/Mines | Destroyed by D-53 Grenadier with Mini Grenade Launcher Last Messages --------------- PINNED - TO ALL TESTERS: Stay away from Zion. Imprinter means us harm and is serious about it. World map updated: -6/Zion. 04646_ Dropped Med. Matter Pod. 04647_ Extracted 30 matter. 04647_ Dropped Med. Matter Pod. 04651_ Acquired Hcp. Matter Pod. 05088_ EXIT=FOUND LOCATION=UNKNOWN GOAL=ESCAPE 05123_ Receiving FarCom transmissions... 05124_ ALERT: Infestation in the mines, dispatching Demolisher response squad. 05124_ K-01 Serf cleans the Core Extractor. 05126_ K-01 Serf collects debris. 05150_ C-45 Heavy ARC bursts open, deploying its payload. 05150_ D-53 Grenadier unfolds itself. 05152_ Core Extractor disabled. Map ----- +----------------------------------------------------+ | | | | | | | | | ?????????????????????????????????????????????????? | | ?????????????????????????????????????????????????? | | ?????????????????????????????????????????????????? | | ?????????????????????????????????????????????????? | | ?????????????????????????????????????????????????? | | ?????????????????????????????????????????????????? | | ???????????????????????? ?????????????????????? | | ???????????????????????? #????????????????????? | | ?????????????s????????## k#????????????????????? | | ?????????????????????## #????????????????????? | | ???????????????#?????# ##???????????????????? | | ???????????????# ???? ##??????????????????? | | ???????????????? ???? ???????????????????? | | ????????????????# ??? ???????????????????? | | ????????????????? ?? ????????????????????? | | ?????????????????? ?? ????????????????????? | | ??????????????????? ? #????????????????????? | | ???????????????????? ## ##???????????????????? | | ????????????????????## ##??????????????????? | | ????????????????????# #??????????????????? | | ????????????????????# #??????????????????? | | ????????????????????# @ #??????????????????? | | ????????????????????# #####??????????????? | | ????????????????????# d #??????????????? | | ????????????????????# d % ### #??????????????? | | ????????????????????# #??????????????????? | | ????????????????????# #??????????????????? | | ????????????????????# #??????????????????? | | ????????????????????###########??????????????????? | | ?????????????????????????????????????????????????? | | ?????????????????????????????????????????????????? | | ?????????????????????????????????????????????????? | | ?????????????????????????????????????????????????? | | ?????????????????????????????????????????????????? | | ?????????????????????????????????????????????????? | | ?????????????????????????????????????????????????? | | ?????????????????????????????????????????????????? | | ?????????????????????????????????????????????????? | | ?????????????????????????????????????????????????? | | ?????????????????????????????????????????????????? | | ?????????????????????????????????????????????????? | | ?????????????????????????????????????????????????? | | ?????????????????????????????????????????????????? | | ?????????????????????????????????????????????????? | | ?????????????????????????????????????????????????? | | ?????????????????????????????????????????????????? | +----------------------------------------------------+ Best States ------------- Heat Dissipation 47 Energy Generation 12 Energy Capacity 265 Matter Stores 300 Matter Capacity 300 Sight Range 16 Terrain Scan Density 10 Evasion (%) 40 Recoil Reduction 2 Item Schematics ----------------- None Robot Schematics ------------------ None Fabricated ------------ Nothing Repaired ---------- Lgt. Cannon | 11% | -10/Materials Lgt. Treads | 6% | -10/Materials Lgt. Treads | 21% | -10/Materials Studied --------- None Alien Tech Used ----------------- None Achievements -------------- None Challenges ------------ None Game ------ Seed ComponentLaunchRail Manual? 0 Play Time 00:24:14 Cumulative 26.2 hours Start 2026.07.24 @ 01:27:50 End 2026.07.24 @ 02:01:47 Sessions 1 Manual Loads 0 Difficulty Rogue Special Mode None Game No. 17 Rogue 17 Adventurer 0 Explorer 0 Win Type - Total 0 Types 0/0/0/0/0/0/0/0/0/0 Lore% 9 Gallery% 18 Achievement% 21 Wizard Run 0 Options --------- Layout 2 ASCII 0 Keyboard 0 Movement Mouse Keybinds 1 Fullscreen 1 Font 24/Terminus Map View 50x44 Zoom Use 0% Tactical HUD 1 Map Filters NONE Filters NONE Steam 1 RUN: b1c2d34d-bc20-4050-9cf4-653cb80f7aeb